[Event "*** Titled Tuesday Blitz"]
[Site "Chess.com"]
[Date "2019.02.05"]
[Round "5"]
[White "murmah2003"]
[Black "Tolya2"]
[Result "0-1"]
[WhiteElo "2648"]
[BlackElo "2534"]
[TimeControl "180+2"]
[EndTime "14:06:37 PST"]
[Termination "Tolya2 won by resignation"]

1. Nf3 {[%clk 0:02:57]} 1... Nf6 {[%clk 0:02:59.7]} 2. d4 {[%clk 0:02:50.6]}
2... d5 {[%clk 0:02:59.3]} 3. c4 {[%clk 0:02:37]} 3... dxc4 {[%clk 0:02:59.9]}
4. e3 {[%clk 0:02:37.8]} 4... e6 {[%clk 0:02:59.8]} 5. Bxc4 {[%clk 0:02:39]}
5... c5 {[%clk 0:03:00.8]} 6. dxc5 {[%clk 0:02:39.4]} 6... Bxc5 {[%clk
0:02:59.3]} 7. Qxd8+ {[%clk 0:02:40]} 7... Kxd8 {[%clk 0:02:59.7]} 8. Nbd2
{[%clk 0:02:30.3]} 8... Ke7 {[%clk 0:02:56.6]} 9. Nb3 {[%clk 0:02:31.2]} 9...
Bd6 {[%clk 0:02:55.4]} 10. Nfd4 {[%clk 0:02:32.4]} 10... b6 {[%clk 0:02:54.8]}
11. f3 {[%clk 0:02:33.2]} 11... Bb7 {[%clk 0:02:55.5]} 12. e4 {[%clk 0:02:34.4]}
12... Rc8 {[%clk 0:02:54.4]} 13. Bd3 {[%clk 0:02:32.2]} 13... Nfd7 {[%clk
0:02:47.4]} 14. Bd2 {[%clk 0:02:16.5]} 14... a6 {[%clk 0:02:46.7]} 15. Ke2
{[%clk 0:02:12.7]} 15... Nc5 {[%clk 0:02:47]} 16. Nxc5 {[%clk 0:02:01]} 16...
Bxc5 {[%clk 0:02:47.1]} 17. Nb3 {[%clk 0:02:01.8]} 17... Bd6 {[%clk 0:02:47.6]}
18. Bc3 {[%clk 0:02:00.9]} 18... f6 {[%clk 0:02:46.5]} 19. Rac1 {[%clk
0:01:34.3]} 19... Nd7 {[%clk 0:02:46.7]} 20. g3 {[%clk 0:01:31.3]} 20... Ne5
{[%clk 0:02:42.5]} 21. Bb1 {[%clk 0:01:17.7]} 21... h6 {[%clk 0:02:36.3]} 22. f4
{[%clk 0:01:14.1]} 22... Nc4 {[%clk 0:02:20.4]} 23. Rhd1 {[%clk 0:01:12.2]}
23... a5 {[%clk 0:02:13]} 24. Nd4 {[%clk 0:00:58.2]} 24... Bb4 {[%clk
0:02:11.2]} 25. Bd3 {[%clk 0:00:24.4]} 25... Bxc3 {[%clk 0:02:09.8]} 26. bxc3
{[%clk 0:00:23.1]} 26... Ba6 {[%clk 0:02:05.2]} 27. Rb1 {[%clk 0:00:19.9]} 27...
Rab8 {[%clk 0:02:04.8]} 28. a4 {[%clk 0:00:18.9]} 28... g6 {[%clk 0:01:57.4]}
29. e5 {[%clk 0:00:18.1]} 29... fxe5 {[%clk 0:01:55.2]} 30. fxe5 {[%clk
0:00:20]} 30... Rc5 {[%clk 0:01:49.7]} 31. Bxg6 {[%clk 0:00:17.4]} 31... Nxe5+
{[%clk 0:01:47.9]} 32. Kf2 {[%clk 0:00:18.7]} 32... Nxg6 {[%clk 0:01:48]} 33.
Re1 {[%clk 0:00:17.5]} 33... e5 {[%clk 0:01:45.8]} 34. Nf5+ {[%clk 0:00:16.3]}
34... Kf6 {[%clk 0:01:45.9]} 35. Nxh6 {[%clk 0:00:18.2]} 35... Rxc3 {[%clk
0:01:45.7]} 36. Ng4+ {[%clk 0:00:13.4]} 36... Kf5 {[%clk 0:01:44.8]} 37. Ne3+
{[%clk 0:00:12.5]} 37... Ke6 {[%clk 0:01:45.4]} 38. Kg1 {[%clk 0:00:05.8]} 38...
Bd3 {[%clk 0:01:41.6]} 39. Rb2 {[%clk 0:00:04.2]} 39... e4 {[%clk 0:01:41.1]}
40. Rf2 {[%clk 0:00:04.6]} 40... Ne5 {[%clk 0:01:40.7]} 41. Kg2 {[%clk
0:00:05.5]} 41... b5 {[%clk 0:01:39.4]} 42. axb5 {[%clk 0:00:05.9]} 42... Rxb5
{[%clk 0:01:39.5]} 43. h4 {[%clk 0:00:05.9]} 43... a4 {[%clk 0:01:39.8]} 44. Ra1
{[%clk 0:00:06.7]} 44... a3 {[%clk 0:01:39.9]} 45. Nf5 {[%clk 0:00:07.5]} 45...
Rb2 {[%clk 0:01:36.3]} 46. Ne3 {[%clk 0:00:05.7]} 46... Nc4 {[%clk 0:01:21.3]}
47. Nd1 {[%clk 0:00:04.8]} 47... Rxf2+ {[%clk 0:01:19.1]} 48. Kxf2 {[%clk
0:00:06.7]} 48... Rc2+ {[%clk 0:01:20]} 49. Kg1 {[%clk 0:00:08.6]} 49... a2
{[%clk 0:01:19.8]} 50. g4 {[%clk 0:00:04.1]} 50... Nd2 {[%clk 0:01:20.4]} 51.
Ne3 {[%clk 0:00:04.4]} 51... Nf3+ {[%clk 0:01:15.1]} 0-1

[Event "*** Titled Tuesday Blitz"]
[Site "Chess.com"]
[Date "2019.02.05"]
[Round "5"]
[White "Ginger_GM"]
[Black "Jospem"]
[Result "1-0"]
[WhiteElo "2613"]
[BlackElo "2887"]
[TimeControl "180+2"]
[EndTime "14:06:38 PST"]
[Termination "Ginger_GM won by resignation"]

1. d4 {[%clk 0:03:01.9]} 1... Nf6 {[%clk 0:03:01.1]} 2. c4 {[%clk 0:03:02.3]}
2... e6 {[%clk 0:03:02.6]} 3. Nf3 {[%clk 0:03:03.2]} 3... Bb4+ {[%clk
0:03:01.4]} 4. Nbd2 {[%clk 0:03:02.2]} 4... O-O {[%clk 0:03:02.4]} 5. a3 {[%clk
0:02:59.6]} 5... Be7 {[%clk 0:03:03.6]} 6. g4 {[%clk 0:02:48.9]} 6... d5 {[%clk
0:02:50]} 7. g5 {[%clk 0:02:37.6]} 7... Ne4 {[%clk 0:02:51.3]} 8. Qc2 {[%clk
0:02:33.9]} 8... Nxg5 {[%clk 0:02:44.5]} 9. Rg1 {[%clk 0:02:26.9]} 9... Nxf3+
{[%clk 0:02:13.8]} 10. Nxf3 {[%clk 0:02:27.7]} 10... c5 {[%clk 0:02:11.1]} 11.
dxc5 {[%clk 0:02:00.7]} 11... Nc6 {[%clk 0:01:52.8]} 12. Bh6 {[%clk 0:01:48.6]}
12... Bf6 {[%clk 0:01:42.3]} 13. O-O-O {[%clk 0:01:48]} 13... Qe7 {[%clk
0:01:35.5]} 14. e4 {[%clk 0:01:12.5]} 14... dxe4 {[%clk 0:01:17.6]} 15. Qxe4
{[%clk 0:01:12.6]} 15... e5 {[%clk 0:01:05.3]} 16. Rd6 {[%clk 0:00:50.7]} 16...
Be6 {[%clk 0:01:04.8]} 17. Bd3 {[%clk 0:00:40.6]} 17... g6 {[%clk 0:01:03.3]}
18. Bxf8 {[%clk 0:00:41.3]} 18... Rxf8 {[%clk 0:01:05]} 19. h4 {[%clk
0:00:38.3]} 19... Kh8 {[%clk 0:00:54.4]} 20. Qe3 {[%clk 0:00:36.5]} 20... Rd8
{[%clk 0:00:36]} 21. Rxd8+ {[%clk 0:00:32.3]} 21... Qxd8 {[%clk 0:00:37.9]} 22.
Rd1 {[%clk 0:00:30.9]} 22... Qe7 {[%clk 0:00:32.3]} 23. Ng5 {[%clk 0:00:31.2]}
23... Nd4 {[%clk 0:00:27.4]} 24. Nxe6 {[%clk 0:00:30.4]} 24... Nxe6 {[%clk
0:00:28.6]} 25. b4 {[%clk 0:00:27.6]} 25... Bxh4 {[%clk 0:00:28.3]} 26. Kb1
{[%clk 0:00:27.7]} 26... Bf6 {[%clk 0:00:28.8]} 27. Be4 {[%clk 0:00:28.7]} 27...
Nd4 {[%clk 0:00:30.1]} 28. Bd5 {[%clk 0:00:27.3]} 28... h5 {[%clk 0:00:24.9]}
29. Qh6+ {[%clk 0:00:26.6]} 29... Kg8 {[%clk 0:00:23.8]} 30. Qxg6+ {[%clk
0:00:27.7]} 30... Kf8 {[%clk 0:00:25.3]} 31. Qxh5 {[%clk 0:00:27.7]} 31... e4
{[%clk 0:00:26.7]} 32. Rg1 {[%clk 0:00:23.8]} 32... Nf3 {[%clk 0:00:16.9]} 33.
Rg3 {[%clk 0:00:20.5]} 33... Bg7 {[%clk 0:00:14.8]} 34. Qf5 {[%clk 0:00:18.4]}
34... Qf6 {[%clk 0:00:07.7]} 35. Qxf6 {[%clk 0:00:18.8]} 35... Bxf6 {[%clk
0:00:09.6]} 36. Kc2 {[%clk 0:00:19.8]} 36... Be5 {[%clk 0:00:09.6]} 37. Rg2
{[%clk 0:00:18.8]} 37... b6 {[%clk 0:00:10.4]} 38. cxb6 {[%clk 0:00:19.7]} 38...
Ne1+ {[%clk 0:00:11.5]} 39. Kd2 {[%clk 0:00:19.3]} 39... e3+ {[%clk 0:00:11.1]}
40. fxe3 {[%clk 0:00:19.6]} 40... Nxg2 {[%clk 0:00:10.6]} 41. bxa7 {[%clk
0:00:19.7]} 1-0

[Event "*** Titled Tuesday Blitz"]
[Site "Chess.com"]
[Date "2019.02.05"]
[Round "5"]
[White "AliKa2810"]
[Black "jcibarra"]
[Result "0-1"]
[WhiteElo "2465"]
[BlackElo "2712"]
[TimeControl "180+2"]
[EndTime "14:06:40 PST"]
[Termination "jcibarra won by resignation"]

1. e4 {[%clk 0:03:00.9]} 1... c5 {[%clk 0:03:00.2]} 2. Nf3 {[%clk 0:03:00.7]}
2... d6 {[%clk 0:02:58.9]} 3. Bb5+ {[%clk 0:03:01.2]} 3... Nc6 {[%clk
0:02:56.6]} 4. O-O {[%clk 0:03:01.1]} 4... Bd7 {[%clk 0:02:56.5]} 5. c3 {[%clk
0:03:01.1]} 5... Nf6 {[%clk 0:02:56.6]} 6. d4 {[%clk 0:03:01.2]} 6... c4 {[%clk
0:02:47]} 7. e5 {[%clk 0:02:51.6]} 7... dxe5 {[%clk 0:02:41]} 8. Bxc4 {[%clk
0:02:46.5]} 8... exd4 {[%clk 0:02:33.5]} 9. cxd4 {[%clk 0:02:38.2]} 9... e6
{[%clk 0:02:31.9]} 10. Nc3 {[%clk 0:02:34.1]} 10... Be7 {[%clk 0:02:29]} 11. d5
{[%clk 0:02:29.7]} 11... exd5 {[%clk 0:02:24.5]} 12. Nxd5 {[%clk 0:02:30.6]}
12... Nxd5 {[%clk 0:02:25.7]} 13. Bxd5 {[%clk 0:02:31.7]} 13... O-O {[%clk
0:02:25]} 14. Be3 {[%clk 0:02:28.5]} 14... Bf6 {[%clk 0:02:20.1]} 15. Qb3 {[%clk
0:02:12.6]} 15... Na5 {[%clk 0:02:12]} 16. Qb4 {[%clk 0:02:08.4]} 16... Nc6
{[%clk 0:02:05.1]} 17. Qa3 {[%clk 0:01:43.6]} 17... Ne7 {[%clk 0:01:57]} 18. Be4
{[%clk 0:01:36.7]} 18... Nf5 {[%clk 0:01:49.1]} 19. Bc5 {[%clk 0:01:34]} 19...
Re8 {[%clk 0:01:46.1]} 20. Qd3 {[%clk 0:01:28.2]} 20... g6 {[%clk 0:01:39.9]}
21. Rad1 {[%clk 0:01:11.1]} 21... Be6 {[%clk 0:01:33.1]} 22. Qb5 {[%clk
0:01:06.9]} 22... Qc7 {[%clk 0:01:28.4]} 23. Rfe1 {[%clk 0:00:42.4]} 23... Rac8
{[%clk 0:01:22.5]} 24. Bxf5 {[%clk 0:00:39.5]} 24... Qxc5 {[%clk 0:01:12]} 25.
Qxc5 {[%clk 0:00:33.7]} 25... Rxc5 {[%clk 0:01:13.9]} 26. Bxe6 {[%clk
0:00:33.6]} 26... Rxe6 {[%clk 0:01:08]} 27. Rxe6 {[%clk 0:00:33.4]} 27... fxe6
{[%clk 0:01:09.9]} 28. g4 {[%clk 0:00:28]} 28... Ra5 {[%clk 0:00:54.4]} 29. g5
{[%clk 0:00:15.9]} 29... Bxg5 {[%clk 0:00:51.4]} 30. Rd7 {[%clk 0:00:16.4]}
30... Bf6 {[%clk 0:00:49]} 31. Rxb7 {[%clk 0:00:16.1]} 31... Rxa2 {[%clk
0:00:44.3]} 32. b4 {[%clk 0:00:17.3]} 32... g5 {[%clk 0:00:40.4]} 33. h3 {[%clk
0:00:17.5]} 33... h5 {[%clk 0:00:39.6]} 34. Kg2 {[%clk 0:00:18.7]} 34... e5
{[%clk 0:00:34.6]} 35. Kg3 {[%clk 0:00:08]} 35... e4 {[%clk 0:00:32.5]} 36. Ne1
{[%clk 0:00:08]} 36... Be5+ {[%clk 0:00:30.3]} 37. Kg2 {[%clk 0:00:09.2]} 37...
Bd4 {[%clk 0:00:24.8]} 38. Re7 {[%clk 0:00:08.3]} 38... Bxf2 {[%clk 0:00:20.2]}
39. Rxe4 {[%clk 0:00:09]} 39... Bxe1+ {[%clk 0:00:21.5]} 40. Kf3 {[%clk
0:00:10.6]} 40... Rf2+ {[%clk 0:00:21]} 41. Ke3 {[%clk 0:00:11.5]} 41... Rh2
{[%clk 0:00:20.8]} 0-1

[Event "*** Titled Tuesday Blitz"]
[Site "Chess.com"]
[Date "2019.02.05"]
[Round "5"]
[White "Satscho"]
[Black "Jbd735"]
[Result "0-1"]
[WhiteElo "2303"]
[BlackElo "2464"]
[TimeControl "180+2"]
[EndTime "14:06:41 PST"]
[Termination "Jbd735 won by resignation"]

1. e4 {[%clk 0:03:01.9]} 1... e5 {[%clk 0:03:00.9]} 2. Nf3 {[%clk 0:03:02.7]}
2... Nc6 {[%clk 0:03:02.2]} 3. Bc4 {[%clk 0:03:04.2]} 3... Bc5 {[%clk
0:03:02.5]} 4. c3 {[%clk 0:03:05.3]} 4... Nf6 {[%clk 0:03:02]} 5. d3 {[%clk
0:03:06.5]} 5... a6 {[%clk 0:03:02.5]} 6. h3 {[%clk 0:03:07]} 6... h6 {[%clk
0:03:02]} 7. Nbd2 {[%clk 0:03:07.9]} 7... O-O {[%clk 0:03:01.9]} 8. Bb3 {[%clk
0:03:08.7]} 8... Ba7 {[%clk 0:03:02.8]} 9. Nf1 {[%clk 0:03:09.7]} 9... Re8
{[%clk 0:03:02.7]} 10. g4 {[%clk 0:03:10.1]} 10... Na5 {[%clk 0:02:43.4]} 11.
Bc2 {[%clk 0:03:08.1]} 11... d5 {[%clk 0:02:44.2]} 12. Qe2 {[%clk 0:03:08.2]}
12... Nh7 {[%clk 0:02:19.2]} 13. Ng3 {[%clk 0:03:04.7]} 13... Nc6 {[%clk
0:02:18.2]} 14. Nf5 {[%clk 0:02:59.6]} 14... Be6 {[%clk 0:02:04.9]} 15. Rg1
{[%clk 0:02:38.5]} 15... b5 {[%clk 0:02:01.5]} 16. b3 {[%clk 0:02:26.4]} 16...
Nf8 {[%clk 0:00:59.1]} 17. h4 {[%clk 0:02:15.5]} 17... b4 {[%clk 0:00:57.9]} 18.
c4 {[%clk 0:02:13.1]} 18... dxe4 {[%clk 0:00:53.3]} 19. dxe4 {[%clk 0:02:13.7]}
19... Kh8 {[%clk 0:00:43]} 20. h5 {[%clk 0:01:46]} 20... f6 {[%clk 0:00:37.7]}
21. N3h4 {[%clk 0:01:32.5]} 21... Nd4 {[%clk 0:00:32.8]} 22. Nxd4 {[%clk
0:01:33.2]} 22... Qxd4 {[%clk 0:00:24.7]} 23. Rb1 {[%clk 0:01:33.7]} 23... Qc3+
{[%clk 0:00:23]} 24. Kf1 {[%clk 0:01:31.4]} 24... Qh3+ {[%clk 0:00:21.4]} 25.
Ng2 {[%clk 0:01:27.2]} 25... Bxg4 {[%clk 0:00:22.4]} 26. Qd3 {[%clk 0:01:24.1]}
26... Qxh5 {[%clk 0:00:20.3]} 27. Ne3 {[%clk 0:01:08.2]} 27... Rad8 {[%clk
0:00:16.3]} 28. Nd5 {[%clk 0:01:04.7]} 28... c6 {[%clk 0:00:15.7]} 29. Qg3
{[%clk 0:00:47.6]} 29... Bh3+ {[%clk 0:00:09.7]} 30. Ke1 {[%clk 0:00:48.5]}
30... Ne6 {[%clk 0:00:09.5]} 31. Nc7 {[%clk 0:00:43.3]} 31... Re7 {[%clk
0:00:05.6]} 32. Nxe6 {[%clk 0:00:33.7]} 32... Bxe6 {[%clk 0:00:07.5]} 33. Be3
{[%clk 0:00:35.3]} 33... Bxe3 {[%clk 0:00:07.3]} 34. Qxe3 {[%clk 0:00:37.2]}
34... Red7 {[%clk 0:00:07.9]} 35. Rg3 {[%clk 0:00:13.7]} 35... Qh1+ {[%clk
0:00:06]} 36. Ke2 {[%clk 0:00:14.3]} 36... Qh5+ {[%clk 0:00:07]} 37. Kf1 {[%clk
0:00:15.4]} 37... Rd2 {[%clk 0:00:06.1]} 38. Rc1 {[%clk 0:00:14.3]} 38... Qh1+
{[%clk 0:00:06]} 39. Rg1 {[%clk 0:00:15]} 39... Bh3+ {[%clk 0:00:07]} 40. Qxh3
{[%clk 0:00:13.3]} 40... Qxh3+ {[%clk 0:00:08]} 0-1

[Event "*** Titled Tuesday Blitz"]
[Site "Chess.com"]
[Date "2019.02.05"]
[Round "5"]
[White "Alexander_Donchenko"]
[Black "ChessWarrior7197"]
[Result "0-1"]
[WhiteElo "2671"]
[BlackElo "2877"]
[TimeControl "180+2"]
[EndTime "14:06:45 PST"]
[Termination "ChessWarrior7197 won by resignation"]

1. Nf3 {[%clk 0:03:01.9]} 1... Nf6 {[%clk 0:03:00.9]} 2. g3 {[%clk 0:03:02.9]}
2... d5 {[%clk 0:03:00.5]} 3. Bg2 {[%clk 0:03:04.2]} 3... Bf5 {[%clk 0:03:00]}
4. O-O {[%clk 0:03:04.4]} 4... c6 {[%clk 0:03:00.3]} 5. d3 {[%clk 0:03:04.6]}
5... e6 {[%clk 0:03:00.6]} 6. Nh4 {[%clk 0:03:05.5]} 6... Bg6 {[%clk 0:03:01]}
7. Nxg6 {[%clk 0:03:05.4]} 7... hxg6 {[%clk 0:03:02.9]} 8. Nc3 {[%clk
0:03:05.9]} 8... Be7 {[%clk 0:02:59.3]} 9. e4 {[%clk 0:03:06.5]} 9... O-O {[%clk
0:02:58.7]} 10. Qe2 {[%clk 0:03:03.5]} 10... Na6 {[%clk 0:02:58.4]} 11. a3
{[%clk 0:02:59.8]} 11... Nc7 {[%clk 0:02:50.9]} 12. h4 {[%clk 0:02:56]} 12... d4
{[%clk 0:02:47.8]} 13. Nb1 {[%clk 0:02:47.7]} 13... e5 {[%clk 0:02:49]} 14. Bh3
{[%clk 0:02:43.3]} 14... c5 {[%clk 0:02:47.4]} 15. Bg5 {[%clk 0:02:41.3]} 15...
Nh5 {[%clk 0:02:44.4]} 16. Bxe7 {[%clk 0:02:23.9]} 16... Qxe7 {[%clk 0:02:46.3]}
17. Nd2 {[%clk 0:02:20.9]} 17... Ne6 {[%clk 0:02:47.3]} 18. Nc4 {[%clk
0:02:14.8]} 18... b5 {[%clk 0:02:39.4]} 19. Nd2 {[%clk 0:02:01.9]} 19... a6
{[%clk 0:02:39.4]} 20. a4 {[%clk 0:02:01.1]} 20... Nhf4 {[%clk 0:02:01.1]} 21.
gxf4 {[%clk 0:01:59]} 21... Nxf4 {[%clk 0:02:03]} 22. Qf3 {[%clk 0:02:00.4]}
22... Qxh4 {[%clk 0:02:03.6]} 23. Kh2 {[%clk 0:01:49.7]} 23... f5 {[%clk
0:01:57.3]} 24. Qg3 {[%clk 0:01:41.7]} 24... Qh6 {[%clk 0:01:51.4]} 25. Rad1
{[%clk 0:01:28.9]} 25... Rf6 {[%clk 0:01:41.3]} 26. Nf3 {[%clk 0:00:49.1]} 26...
fxe4 {[%clk 0:01:39.1]} 27. Nxe5 {[%clk 0:00:50.5]} 27... Nh5 {[%clk 0:01:18.4]}
28. Qg4 {[%clk 0:00:43.3]} 28... Re8 {[%clk 0:01:11.9]} 29. f4 {[%clk
0:00:33.3]} 29... Nxf4 {[%clk 0:01:04.7]} 30. Nxg6 {[%clk 0:00:19.3]} 30... Nxh3
{[%clk 0:00:51.4]} 31. Qxh3 {[%clk 0:00:06.8]} 31... Rxg6 {[%clk 0:00:50.3]} 32.
dxe4 {[%clk 0:00:04.4]} 32... Rxe4 {[%clk 0:00:47.7]} 33. Qxh6 {[%clk
0:00:04.4]} 33... gxh6 {[%clk 0:00:48.1]} 34. Rd3 {[%clk 0:00:05.5]} 34... Re2+
{[%clk 0:00:48.5]} 35. Kh1 {[%clk 0:00:06.1]} 35... Rxc2 {[%clk 0:00:43.4]} 36.
axb5 {[%clk 0:00:07.4]} 36... axb5 {[%clk 0:00:44.3]} 37. b4 {[%clk 0:00:08.6]}
37... cxb4 {[%clk 0:00:41.3]} 38. Rxd4 {[%clk 0:00:10]} 38... b3 {[%clk
0:00:40.3]} 39. Rd8+ {[%clk 0:00:03.1]} 39... Kh7 {[%clk 0:00:40.9]} 40. Rd7+
{[%clk 0:00:03.6]} 40... Rg7 {[%clk 0:00:41.8]} 41. Rd3 {[%clk 0:00:02.9]} 41...
b2 {[%clk 0:00:42.3]} 42. Rdd1 {[%clk 0:00:04.2]} 42... Rgc7 {[%clk 0:00:37.5]}
43. Rd2 {[%clk 0:00:02.5]} 43... Rxd2 {[%clk 0:00:36.3]} 0-1

[Event "*** Titled Tuesday Blitz"]
[Site "Chess.com"]
[Date "2019.02.05"]
[Round "5"]
[White "DoHoChess"]
[Black "SCIM"]
[Result "1-0"]
[WhiteElo "2614"]
[BlackElo "2407"]
[TimeControl "180+2"]
[EndTime "14:06:47 PST"]
[Termination "DoHoChess won by resignation"]

1. c4 {[%clk 0:02:58.1]} 1... g6 {[%clk 0:02:59.4]} 2. g3 {[%clk 0:02:58.6]}
2... Bg7 {[%clk 0:02:59.3]} 3. Bg2 {[%clk 0:03:00.2]} 3... c5 {[%clk 0:03:00.7]}
4. Nc3 {[%clk 0:03:00.2]} 4... Nc6 {[%clk 0:03:01.9]} 5. Nf3 {[%clk 0:03:01.4]}
5... Nf6 {[%clk 0:03:01.4]} 6. d4 {[%clk 0:03:01.7]} 6... cxd4 {[%clk
0:03:01.5]} 7. Nxd4 {[%clk 0:03:03.5]} 7... O-O {[%clk 0:03:03]} 8. O-O {[%clk
0:03:04.5]} 8... Nxd4 {[%clk 0:02:58.4]} 9. Qxd4 {[%clk 0:03:05.3]} 9... d6
{[%clk 0:03:00.1]} 10. Qd3 {[%clk 0:03:05.1]} 10... a6 {[%clk 0:02:56.6]} 11.
Bd2 {[%clk 0:03:04.2]} 11... Qc7 {[%clk 0:02:56.7]} 12. Rac1 {[%clk 0:03:04.5]}
12... Be6 {[%clk 0:02:56.3]} 13. b3 {[%clk 0:02:56.3]} 13... Rac8 {[%clk
0:02:56.1]} 14. Qf3 {[%clk 0:02:46.7]} 14... Rb8 {[%clk 0:02:52]} 15. Bf4 {[%clk
0:02:39]} 15... Rfd8 {[%clk 0:02:48.9]} 16. Na4 {[%clk 0:02:33.6]} 16... Qa5
{[%clk 0:02:45.1]} 17. c5 {[%clk 0:02:29.1]} 17... Bd5 {[%clk 0:02:31.4]} 18.
Qc3 {[%clk 0:02:08.8]} 18... Qxc3 {[%clk 0:02:30.7]} 19. Nxc3 {[%clk 0:02:10]}
19... Bxg2 {[%clk 0:02:32.1]} 20. Kxg2 {[%clk 0:02:11.9]} 20... e5 {[%clk
0:02:18.8]} 21. Bg5 {[%clk 0:02:12.2]} 21... d5 {[%clk 0:02:15.3]} 22. Rfd1
{[%clk 0:02:08.8]} 22... d4 {[%clk 0:02:15.9]} 23. Na4 {[%clk 0:01:50.7]} 23...
Rbc8 {[%clk 0:01:54.6]} 24. Bxf6 {[%clk 0:01:50.1]} 24... Bxf6 {[%clk
0:01:54.6]} 25. e3 {[%clk 0:01:51]} 25... h5 {[%clk 0:01:20]} 26. e4 {[%clk
0:01:40.8]} 26... Rc6 {[%clk 0:01:17.1]} 27. Rc4 {[%clk 0:01:35]} 27... Rdc8
{[%clk 0:01:12.1]} 28. Nb6 {[%clk 0:01:19.5]} 28... Rd8 {[%clk 0:01:12.1]} 29.
Nd5 {[%clk 0:01:17.3]} 29... Kg7 {[%clk 0:01:11.9]} 30. f4 {[%clk 0:01:16.7]}
30... Rdc8 {[%clk 0:01:06.5]} 31. fxe5 {[%clk 0:01:16.9]} 31... Bxe5 {[%clk
0:01:05.9]} 32. Ne7 {[%clk 0:01:17.6]} 32... R8c7 {[%clk 0:00:50.5]} 33. Nxc6
{[%clk 0:01:17.9]} 33... Rxc6 {[%clk 0:00:52.4]} 34. b4 {[%clk 0:01:16.6]} 34...
b5 {[%clk 0:00:45.8]} 35. Rc2 {[%clk 0:01:15]} 35... Kf6 {[%clk 0:00:47]} 36.
Kf3 {[%clk 0:01:14.8]} 36... Ke6 {[%clk 0:00:48.3]} 37. Ke2 {[%clk 0:01:15]}
37... Rc8 {[%clk 0:00:44.7]} 38. Kd3 {[%clk 0:01:16.1]} 38... Rf8 {[%clk
0:00:45]} 39. a4 {[%clk 0:01:16]} 39... Rb8 {[%clk 0:00:32.7]} 40. axb5 {[%clk
0:01:13.1]} 40... Rxb5 {[%clk 0:00:34.1]} 41. Kc4 {[%clk 0:01:13.9]} 41... Rb8
{[%clk 0:00:30.2]} 42. Ra2 {[%clk 0:01:13.9]} 42... Ra8 {[%clk 0:00:26.9]} 43.
Ra5 {[%clk 0:01:11.2]} 43... Bc7 {[%clk 0:00:24]} 44. Ra4 {[%clk 0:01:11.5]}
44... Be5 {[%clk 0:00:23.2]} 45. Kd3 {[%clk 0:01:07.9]} 45... f5 {[%clk
0:00:21.5]} 46. exf5+ {[%clk 0:01:07.5]} 46... Kxf5 {[%clk 0:00:21.9]} 47. b5
{[%clk 0:01:04.1]} 47... Rb8 {[%clk 0:00:21.7]} 48. bxa6 {[%clk 0:01:04]} 48...
Rb3+ {[%clk 0:00:22.3]} 49. Ke2 {[%clk 0:00:55.3]} 49... Ke4 {[%clk 0:00:21.7]}
50. a7 {[%clk 0:00:52.4]} 50... Rb2+ {[%clk 0:00:23.1]} 51. Kf1 {[%clk 0:00:52]}
51... Ke3 {[%clk 0:00:18.6]} 52. a8=Q {[%clk 0:00:50]} 1-0

[Event "*** Titled Tuesday Blitz"]
[Site "Chess.com"]
[Date "2019.02.05"]
[Round "5"]
[White "ori99"]
[Black "Lord_Neezy"]
[Result "1/2-1/2"]
[WhiteElo "2031"]
[BlackElo "2176"]
[TimeControl "180+2"]
[EndTime "14:06:48 PST"]
[Termination "Game drawn by repetition"]

1. e4 {[%clk 0:03:01.9]} 1... e6 {[%clk 0:02:57.1]} 2. d4 {[%clk 0:02:58]} 2...
d5 {[%clk 0:02:58.1]} 3. exd5 {[%clk 0:02:57.9]} 3... exd5 {[%clk 0:02:58.9]} 4.
Bd3 {[%clk 0:02:57.7]} 4... Nc6 {[%clk 0:02:56.9]} 5. Ne2 {[%clk 0:02:55.5]}
5... Bd6 {[%clk 0:02:44.9]} 6. Nbc3 {[%clk 0:02:52.3]} 6... Nge7 {[%clk
0:02:24.1]} 7. O-O {[%clk 0:02:45.9]} 7... O-O {[%clk 0:02:19]} 8. Be3 {[%clk
0:02:19.7]} 8... Nb4 {[%clk 0:02:13.9]} 9. Ng3 {[%clk 0:02:05.5]} 9... Nxd3
{[%clk 0:02:09.3]} 10. Qxd3 {[%clk 0:02:05.9]} 10... Bxg3 {[%clk 0:02:01.5]} 11.
hxg3 {[%clk 0:01:53]} 11... Bf5 {[%clk 0:02:00.5]} 12. Qd2 {[%clk 0:01:51.5]}
12... Nc8 {[%clk 0:01:46]} 13. f3 {[%clk 0:01:46.9]} 13... c6 {[%clk 0:01:41.8]}
14. Kf2 {[%clk 0:01:45]} 14... Nd6 {[%clk 0:01:40.9]} 15. b3 {[%clk 0:01:44.7]}
15... Bg6 {[%clk 0:01:32.7]} 16. Rh1 {[%clk 0:01:44.2]} 16... Nf5 {[%clk
0:00:54.3]} 17. Ne2 {[%clk 0:01:41.3]} 17... Nxe3 {[%clk 0:00:51.8]} 18. Kxe3
{[%clk 0:01:30.1]} 18... Qg5+ {[%clk 0:00:43.3]} 19. f4 {[%clk 0:01:28]} 19...
Qf5 {[%clk 0:00:34.9]} 20. Rac1 {[%clk 0:01:19.1]} 20... Rfe8+ {[%clk
0:00:19.7]} 21. Kf2 {[%clk 0:01:20]} 21... Bh5 {[%clk 0:00:14.9]} 22. Ng1 {[%clk
0:01:15.9]} 22... Bg4 {[%clk 0:00:13.7]} 23. Nf3 {[%clk 0:01:15.8]} 23... f6
{[%clk 0:00:13.7]} 24. Rhe1 {[%clk 0:01:13.8]} 24... h5 {[%clk 0:00:14]} 25. Nh4
{[%clk 0:01:07.2]} 25... Qd7 {[%clk 0:00:10.7]} 26. Rxe8+ {[%clk 0:01:05.7]}
26... Rxe8 {[%clk 0:00:11.8]} 27. Re1 {[%clk 0:01:07.1]} 27... Kf7 {[%clk
0:00:10.6]} 28. Re3 {[%clk 0:00:52.5]} 28... b6 {[%clk 0:00:09.1]} 29. Qe1
{[%clk 0:00:52.2]} 29... Rxe3 {[%clk 0:00:08.2]} 30. Qxe3 {[%clk 0:00:54.1]}
30... Qe6 {[%clk 0:00:06.4]} 31. Qd2 {[%clk 0:00:48.7]} 31... g6 {[%clk
0:00:05.4]} 32. Nf3 {[%clk 0:00:48.6]} 32... Bxf3 {[%clk 0:00:05.2]} 33. Kxf3
{[%clk 0:00:47.7]} 33... Qe4+ {[%clk 0:00:05.6]} 34. Kf2 {[%clk 0:00:48.8]}
34... Ke6 {[%clk 0:00:06.9]} 35. c3 {[%clk 0:00:46.9]} 35... Kf5 {[%clk
0:00:06.5]} 36. c4 {[%clk 0:00:42.7]} 36... h4 {[%clk 0:00:06.8]} 37. cxd5
{[%clk 0:00:33.7]} 37... cxd5 {[%clk 0:00:07.6]} 38. a4 {[%clk 0:00:13.5]} 38...
Kg4 {[%clk 0:00:05.5]} 39. Qd1+ {[%clk 0:00:13.4]} 39... Kf5 {[%clk 0:00:07.1]}
40. Qd2 {[%clk 0:00:10.6]} 40... Kg4 {[%clk 0:00:06.5]} 41. Qd1+ {[%clk
0:00:10.8]} 41... Kf5 {[%clk 0:00:08.2]} 42. Qd2 {[%clk 0:00:10.3]} 1/2-1/2